{"text_format":"1","workbook":"xlsx","n_sheets":2,"sheets":["Commandes","Bon retour"],"not_rendered":{"charts":0,"images":6,"macros":1,"external_links":0,"defined_names":2,"comments":0,"pivot_tables":0},"unopened":[],"bounds":{"document_bytes":16777216,"sheet_cells":100000,"rows_first":2000,"rows_last":500,"rows_between":2000,"halvings":0,"cell_chars":16384,"cell_head_chars":4096},"cells_cut":0,"cells_raw":0,"read":"whole","date_system":"1900"}

{"sheet":"Commandes","index":0,"n_rows":50,"n_cols":28,"rows_kept":50,"cut":false,"hidden":false,"merged":[[28,2,28,4],[29,2,29,4],[30,2,30,4],[31,2,31,4],[21,2,21,4],[22,2,22,4],[23,2,23,4],[24,2,24,4],[25,2,25,4],[48,0,48,5],[49,0,49,5],[51,0,51,5],[42,0,42,5],[44,0,44,5],[45,0,45,5],[46,0,46,5],[47,0,47,5],[39,0,39,1],[34,0,34,5],[38,2,38,3],[35,0,35,1],[5,0,5,1],[1,2,1,4],[17,0,17,5],[16,0,16,5],[9,4,9,5],[10,4,10,5],[11,4,11,5],[12,4,12,5],[14,4,14,5],[13,4,13,5],[9,0,9,2],[14,0,14,2],[10,0,10,2],[26,2,26,4],[27,2,27,4],[36,0,36,1],[37,0,37,1],[38,0,38,1],[35,2,35,5],[37,2,37,5],[2,2,2,4],[11,0,11,2],[12,0,12,2],[13,0,13,2],[18,2,18,4],[20,2,20,4]]}
[]
[null,null,"Aide mémoire pour les lotos 2025 - 2026"]
[null,null,"Commande 20 jours avant votre loto"]
[]
["La Marive",null,null,"Timbre de la société : "]
["Quai de Nogent 1"]
["CH - 1400 Yverdon-les-Bains"]
["Tél : +41 24 423 65 92"]
["courriel : lamarive@yverdon-les-bains.ch "]
["Date de votre loto :",null,null,null,null,null,null,null,null,{"$f":"TODAY()","v":"2025-09-05"},{"$f":"J10+365","v":"2026-09-05"}]
["Loto pour les jours de semaine (jeudi et vendredi)",null,null," 17H00 à 01H00",null,null,null,null,null,"Choisissez","17H00 - 01H00"]
["Réservation du parking CHF 100.- (géré par vos soins)",null,null,"Oui","Non",null,null,null,null,"Non","Oui, CHF 100.-"]
["Loto pour la fin de semaine (samedi, dimanche et férié)",null,null," 17H00 à 01H00","10H00 à 01H00",null,null,null,null,"Choisissez","17H00 - 01H00","10H00 - 01H00"]
["Réservation du parking CHF 200.- (géré par vos soins)",null,null,"Oui","Non",null,null,null,null,"Non","Oui, CHF 200.-"]
["Utilisation des 10 tables et 100 chaises de l'USLY",null,null,"Oui","Non",null,null,null,null,"Non","Oui"]
[]
["Commande de matériel"]
["Les commandes se font à l'unité, le matériel commandé en trop n'est pas repris. La quantité livrée est arrondie au nombre supérieur en fonction de son conditionnement. Toute commande tardive et/ou le jour même sera majorée de CHF 15.- et sera livrée en fonction du stock disponible. Les prix ci-dessous peuvent changer en tous temps, en fonction des conditions du marché. Le matériel commandé, sera facturé avec la salle."]
["Quantité commandée\nà l'unité","Quantité livrée","Article",null,null,"Prix CHF TTC"]
[null,null,"Commande ECOMANIF sur https://www.ecomanif.ch"]
[null,null,"Touilleur en bois 11cm",null,null,1.6,{"$f":"A21*F21%","v":0},null,100,200,300,400,500,600,700,800,900,1000,1100,1200,1300,1400,1500,1600,1700,1800,1900,2000]
[null,null,"Gobelets carton 1.5dl",null,null,12,{"$f":"A22*F22%","v":0},null,100,200,300,400,500,600,700,800,900,1000,1100,1200,1300,1400,1500,1600,1700,1800,1900,2000]
[null,null,"Rouleau plastique 100 m",null,null,47,{"$f":"A23*F23","v":0},null,1,2,3,4,5,6,7,8,9,10]
[null,null,"Café Raygil filtre 1kg pour 20 lt (~120 cafés)",null,null,"27.- / kg",{"$f":"A24*F24","v":{"$error":"#VALUE!"}},null,1,2,3,4,5]
[null,null,"Café Raygil en grain (~120 cafés)",null,null,28,0,null,1,2,3,4,5]
[null,null,"Café, compris sucre et crème, avec machine Cappuccino, décompte selon compteur",null,null,0.75,"Selon compteur",null,"oui","non"]
[null,null,"Café, compris sucre et crème, avec machine du bar, décompte selon compteur",null,null,1,"selon compteur",null,"oui","non"]
[null,null,"Sucre en sachet (1'000 sachets)",null,null,20,0,null,1,2,3,4,5]
[null,null,"Crème à café (carton de 200 pces)",null,null,22,0,null,1,2,3,4,5]
[null,null,"Sacs poubelles STRID 35lt, rlx de 10 sacs",null,null,19.5,0,null,1,2,3,4,5,6]
[null,null,"Sacs poubelles STRID 110lt, rlx de 5 sacs",null,null,30,0,null,1,2,3,4,5,6]
[null,null,"Boille d'eau chaude 20lt",null,null,null,null,null,1,2,3,4]
[null,null,null,null,null,"Total provisoire",{"$f":"G21+G22+G23+G25+G28+G29+G30+G31","v":0}]
[]
[]
["Nom & prénom de la personne responsable : ",null,null,null,null,null,null,null,5,35]
["N° de téléphone : ",null,null,null,null,null,null,null,9,17]
["Adresse complète de la société : "]
["Lieu : ",null,null,null,"Date : ",{"$f":"TODAY()","v":"2025-09-05"},null,null,5,18]
["Signature : "]
[]
[]
["Aide mémoire"]
[]
["Nous vous rappelons que la livraison du matériel doit se faire pendant les heures choisies."]
["La responsabilité du nettoyage vous incombe pour le cas où de l'eau ou autre liquide est versé sur les sols, dans la chambre froide et WC (pensez à prendre du matériel de nettoyage - pattes - éponges - sacs poubelles taxés 110 lt)."]
["Les déchets sont à évacuer dans les containers prévus à cet effet, le carton est plié et mis dans le container papier/carton."]
["A la fin du loto, le balayage de la salle vous incombe, les balais sont mis à votre disposition et sont à nettoyer une fois la salle propre (penser au locataire suivant)."]
["Vous devez également nettoyer les bars mobiles, vider les boilles d'eau et/ou de café et les laver."]
["Le surveillant de La Marive est à votre disposition pour vous conseiller et répondre à vos questions. Il est également responsable du bon fonctionnement du bâtiment et de l'entretien courant des WC."]

{"sheet":"Bon retour","index":1,"n_rows":22,"n_cols":5,"rows_kept":22,"cut":false,"hidden":true,"merged":[[1,2,1,4],[2,2,2,4],[4,4,4,6],[5,0,5,1],[5,4,5,6],[6,4,6,6],[13,2,13,3],[14,2,14,3],[15,2,15,3],[16,2,16,3],[9,0,9,2],[9,4,9,5],[10,0,10,5],[11,2,11,3],[12,2,12,3],[6,0,6,1]]}
[]
[null,null,"Lotos 2021 - 2022"]
[null,null,"Retour vaisselle réutilisable"]
[]
["La Marive",null,null,"Société : "]
["Quai de Nogent 1"]
["CH - 1400 Yverdon-les-Bains"]
["Tél : +41 24 423 65 92"]
["courriel : lamarive@yverdon-les-bains.ch "]
["Date du loto :",null,null,{"$f":"Commandes!D10","v":"00:00:00"}]
[]
["Quantité livrée","Quantité retour Ecomanif","Article",null,"Perte"]
[{"$f":"Commandes!#REF!","v":{"$error":"#REF!"}},null,"Gobelet 10cl ECOMANIF réutilisable (vin/espresso)",null,{"$f":"A13-B13","v":{"$error":"#REF!"}}]
[{"$f":"Commandes!#REF!","v":{"$error":"#REF!"}},null,"Gobelets 20 cl ECOMANIF réutilisable (café/thé)",null,{"$f":"A14-B14","v":{"$error":"#REF!"}}]
[{"$f":"Commandes!#REF!","v":{"$error":"#REF!"}},null,"Gobelets 30cl ECOMANIF réutilisable (minérale/bière)",null,{"$error":"#REF!"}]
[{"$f":"Commandes!#REF!","v":{"$error":"#REF!"}},null,"Cuillères à café ECOMANIF réutilisable",null,{"$error":"#REF!"}]
[{"$f":"Commandes!#REF!","v":{"$error":"#REF!"}},null,"Lavage caisse pour vaisselle ECOMANIF"]
[{"$f":"Commandes!#REF!","v":{"$error":"#REF!"}},null,"Transport"]
[]
["Date : "]
[]
["Signature :"]